bitfinex-derivatives/quotes_BTCF0:USTF0_20251220
["timestamp","ask_amount","ask_price","bid_price","bid_amount"]
[1766257500137,0.02505727,88286.0,88271.0,0.0212]
[1766257500340,0.0113317,88288.0,88271.0,0.0212]
[1766257500540,0.02505765,88287.0,88271.0,0.0212]
[1766257500747,0.02505765,88286.0,88271.0,0.0212]
[1766257500939,0.0113317,88288.0,88271.0,0.0212]
[1766257501139,0.02505765,88287.0,88271.0,0.0212]
[1766257501342,0.02505765,88286.0,88271.0,0.0212]
[1766257501538,0.2283608,88290.0,88271.0,0.0212]
[1766257501743,0.02505765,88289.0,88271.0,0.0212]
[1766257502036,0.02505765,88288.0,88271.0,0.0212]
[1766257502234,0.02505765,88287.0,88271.0,0.0212]
[1766257502435,0.01708,88292.0,88272.0,0.0113337]
[1766257502636,0.01708,88292.0,88271.0,0.0212]
[1766257502637,0.02505745,88291.0,88271.0,0.0325338]
[1766257502840,0.02505745,88290.0,88271.0,0.0325338]
[1766257503042,0.02505745,88289.0,88271.0,0.0212]
[1766257503244,0.02505745,88288.0,88271.0,0.0212]
[1766257503444,0.0113313,88291.0,88271.0,0.0212]
[1766257503741,0.25341693,88290.0,88271.0,0.0212]
[1766257503938,0.02505613,88289.0,88271.0,0.0212]
[1766257504142,0.02505613,88288.0,88271.0,0.0212]
[1766257504340,0.2283608,88290.0,88271.0,0.0212]
[1766257504640,0.02505574,88289.0,88271.0,0.0212]
[1766257504831,0.02505574,88288.0,88271.0,0.0212]
[1766257505026,0.22833801,88290.0,88271.0,0.0212]
[1766257505240,0.02505573,88289.0,88271.0,0.0212]
[1766257505440,0.02505573,88288.0,88271.0,0.0212]
[1766257505639,0.22833801,88290.0,88271.0,0.0212]
[1766257505844,0.02505545,88289.0,88271.0,0.0212]
[1766257506045,0.02505545,88288.0,88267.0,0.0113342]
[1766257506340,0.22833801,88290.0,88272.0,0.01596]
[1766257506542,0.02505521,88289.0,88272.0,0.01596]
[1766257506738,0.02505521,88288.0,88272.0,0.01596]
[1766257506943,0.22833801,88290.0,88272.0,0.01596]
[1766257507242,0.02505521,88289.0,88272.0,0.01596]
[1766257507442,0.02505521,88288.0,88272.0,0.01596]
[1766257507642,0.22833801,88290.0,88272.0,0.01596]
[1766257507842,0.02505503,88289.0,88272.0,0.01596]
[1766257508043,0.02505503,88288.0,88272.0,0.01596]
[1766257508230,0.02505503,88287.0,88272.0,0.01596]
[1766257508437,0.22833801,88290.0,88272.0,0.01596]
[1766257508636,0.02505539,88289.0,88272.0,0.01596]
[1766257508935,0.02505539,88288.0,88272.0,0.01596]
[1766257509134,0.02505539,88287.0,88272.0,0.01596]
[1766257509340,0.22833801,88290.0,88272.0,0.01596]
[1766257509633,0.02505545,88289.0,88272.0,0.01596]
[1766257509840,0.02505545,88288.0,88272.0,0.01596]
[1766257510034,0.02505545,88287.0,88272.0,0.01596]
[1766257510237,0.22833801,88290.0,88272.0,0.01596]
[1766257510440,0.02505551,88289.0,88272.0,0.01596]
[1766257510642,0.02505551,88288.0,88272.0,0.01596]
[1766257510835,0.22833801,88290.0,88272.0,0.01596]
[1766257511035,0.02505516,88289.0,88272.0,0.01596]
[1766257511245,0.02505516,88288.0,88272.0,0.01596]
[1766257511445,0.22833801,88290.0,88272.0,0.01596]
[1766257511641,0.025055,88289.0,88272.0,0.01596]
[1766257511944,0.025055,88288.0,88272.0,0.01596]
[1766257512147,0.025055,88287.0,88272.0,0.01596]
[1766257512346,0.22833801,88290.0,88272.0,0.01596]
[1766257512644,0.02505488,88289.0,88272.0,0.01596]
[1766257512846,0.02505488,88288.0,88272.0,0.01596]
[1766257513040,0.02505488,88287.0,88272.0,0.01596]
[1766257513246,0.22833801,88290.0,88272.0,0.01596]
[1766257513446,0.02505478,88289.0,88272.0,0.01596]
[1766257513749,0.02505478,88288.0,88272.0,0.01596]
[1766257513944,0.02505478,88287.0,88272.0,0.01596]
[1766257514144,0.22833801,88290.0,88272.0,0.01596]
[1766257514344,0.02505478,88289.0,88272.0,0.01596]
[1766257514545,0.02505478,88288.0,88272.0,0.01596]
[1766257514740,0.02505478,88287.0,88272.0,0.01596]
[1766257514945,0.22833801,88290.0,88272.0,0.01596]
[1766257515148,0.02505471,88289.0,88272.0,0.01596]
[1766257515350,0.02505471,88288.0,88272.0,0.01596]
[1766257515546,0.02505471,88287.0,88272.0,0.01596]
[1766257515751,0.22833801,88290.0,88272.0,0.01596]
[1766257515946,0.02505466,88289.0,88272.0,0.01596]
[1766257516246,0.02505466,88288.0,88272.0,0.01596]
[1766257516446,0.02505466,88287.0,88272.0,0.01596]
[1766257516646,0.0113316,88288.0,88273.0,0.0284]
[1766257516945,0.02505464,88287.0,88273.0,0.0284]
[1766257517145,0.0113316,88288.0,88273.0,0.0284]
[1766257517449,0.02505464,88287.0,88273.0,0.0284]
[1766257517649,0.02505464,88286.0,88273.0,0.0284]
[1766257517850,0.0113316,88288.0,88273.0,0.0284]
[1766257518050,0.02505496,88287.0,88273.0,0.0284]
[1766257518256,0.02505496,88286.0,88273.0,0.0284]
[1766257518554,0.22833801,88290.0,88273.0,0.0284]
[1766257518757,0.02505503,88289.0,88273.0,0.0284]
[1766257518947,0.02505503,88288.0,88273.0,0.0284]
[1766257519252,0.02505503,88287.0,88273.0,0.0284]
[1766257519452,0.22833801,88290.0,88273.0,0.0284]
[1766257519656,0.02505465,88289.0,88273.0,0.0284]
[1766257519845,0.02505465,88288.0,88273.0,0.0284]
[1766257520045,0.02505465,88287.0,88273.0,0.0284]
[1766257520255,0.22833801,88290.0,88273.0,0.0284]
[1766257520554,0.02505463,88289.0,88274.0,0.0284]
[1766257520754,0.02505463,88288.0,88274.0,0.0284]
[1766257520956,0.02505463,88287.0,88274.0,0.0284]
[1766257521150,0.22833801,88290.0,88274.0,0.0284]
[1766257521352,0.02505463,88289.0,88274.0,0.0284]
[1766257521555,0.02505463,88288.0,88274.0,0.0284]
[1766257521854,0.02505463,88287.0,88274.0,0.0284]
[1766257522053,0.22833801,88290.0,88274.0,0.0284]
[1766257522258,0.02505465,88289.0,88274.0,0.0284]
[1766257522554,0.02505465,88288.0,88274.0,0.0284]
[1766257522755,0.02505465,88287.0,88274.0,0.0284]
[1766257523054,0.22833801,88290.0,88274.0,0.0284]
[1766257523262,0.02505451,88289.0,88274.0,0.0284]
[1766257523455,0.02505451,88288.0,88274.0,0.0284]
[1766257523753,0.02505451,88287.0,88274.0,0.0284]
[1766257523957,0.22833801,88290.0,88274.0,0.0284]
[1766257524156,0.02505446,88289.0,88274.0,0.0284]
[1766257524355,0.02505446,88288.0,88274.0,0.0284]
[1766257524558,0.02505446,88287.0,88274.0,0.0284]
[1766257524757,0.22833801,88290.0,88274.0,0.0284]
[1766257525058,0.02505447,88289.0,88274.0,0.0284]
[1766257525359,0.02505447,88288.0,88274.0,0.0284]
[1766257525554,0.02505447,88287.0,88274.0,0.0284]
[1766257525757,0.22833801,88290.0,88274.0,0.0284]
[1766257525955,0.02505448,88289.0,88274.0,0.0284]
[1766257526257,0.02505448,88288.0,88274.0,0.0284]
[1766257526443,0.02505448,88287.0,88274.0,0.0284]
[1766257526648,0.23966941,88290.0,88274.0,0.0284]
[1766257526852,0.02501167,88289.0,88274.0,0.0284]
[1766257527052,0.02501167,88288.0,88274.0,0.0284]
[1766257527256,0.02501167,88287.0,88274.0,0.0284]
[1766257527455,0.23966941,88290.0,88274.0,0.0284]
[1766257527655,0.02501186,88289.0,88274.0,0.0284]
[1766257527857,0.02501186,88288.0,88274.0,0.0284]
[1766257528056,0.02501186,88287.0,88274.0,0.0284]
[1766257528256,0.02501186,88286.0,88274.0,0.0284]
[1766257528457,0.23966941,88290.0,88274.0,0.0284]
[1766257528653,0.02501209,88289.0,88274.0,0.0284]
[1766257528852,0.02501209,88288.0,88274.0,0.0284]
[1766257529054,0.02501209,88287.0,88274.0,0.0284]
[1766257529258,0.02501209,88286.0,88274.0,0.0284]
[1766257529444,0.23966941,88290.0,88274.0,0.0284]
[1766257529649,0.02501237,88289.0,88274.0,0.0284]
[1766257529846,0.02501237,88288.0,88274.0,0.0284]
[1766257530158,0.02501237,88287.0,88274.0,0.0284]
[1766257530358,0.02501237,88286.0,88274.0,0.0284]
[1766257530655,0.23966941,88290.0,88274.0,0.0284]
[1766257530854,0.02501241,88289.0,88274.0,0.0284]
[1766257531054,0.02501241,88288.0,88274.0,0.0284]
[1766257531254,0.02501241,88287.0,88274.0,0.0284]
[1766257531561,0.23966941,88290.0,88274.0,0.0284]
[1766257531763,0.02501278,88289.0,88274.0,0.0284]
[1766257533560,0.02501278,88289.0,88267.0,0.06101656]
[1766257533760,0.02501278,88289.0,88268.0,0.0284]
[1766257535861,0.02501278,88289.0,88267.0,0.06101656]
[1766257536161,0.02501278,88289.0,88268.0,0.0284]
[1766257541762,0.02501278,88289.0,88270.0,0.22833932]
[1766257543763,0.02501278,88289.0,88270.0,0.23967322]
[1766257545768,0.02501278,88289.0,88270.0,0.0113339]
[1766257554663,0.02501278,88289.0,88270.0,0.23967322]
[1766257561875,0.02501278,88289.0,88273.0,0.0113334]
[1766257562073,0.02501278,88289.0,88274.0,0.0284]
[1766257562275,0.02501278,88289.0,88275.0,0.0113332]
[1766257566377,0.02501278,88289.0,88274.0,0.0284]
[1766257578284,0.02507903,88288.0,88274.0,0.0284]
[1766257578490,0.22832012,88290.0,88274.0,0.0284]
[1766257578791,0.02507917,88289.0,88274.0,0.0284]
[1766257579089,0.22832012,88290.0,88274.0,0.0284]
[1766257579090,0.02507917,88288.0,88274.0,0.0284]
[1766257579391,0.22832012,88290.0,88274.0,0.0284]
[1766257579583,0.02507936,88289.0,88274.0,0.0284]
[1766257579783,0.02507936,88288.0,88274.0,0.0284]
[1766257579985,0.22832012,88290.0,88274.0,0.0284]
[1766257580186,0.02507936,88289.0,88274.0,0.0284]
[1766257580379,0.02507936,88288.0,88274.0,0.0284]
[1766257580584,0.02507936,88287.0,88274.0,0.0284]
[1766257580785,0.22832012,88290.0,88274.0,0.0284]
[1766257581080,0.02507959,88289.0,88274.0,0.0284]
[1766257581391,0.02507959,88288.0,88274.0,0.0284]
[1766257581590,0.22832012,88290.0,88274.0,0.0284]
[1766257581795,0.0250798,88289.0,88274.0,0.0284]
[1766257581980,0.22832012,88290.0,88274.0,0.0284]
[1766257581981,0.0250798,88288.0,88274.0,0.0284]
[1766257582181,0.0250798,88287.0,88274.0,0.0284]
[1766257582380,0.22832012,88290.0,88274.0,0.0284]
[1766257582591,0.02508022,88289.0,88274.0,0.0397334]
[1766257582793,0.02508022,88288.0,88274.0,0.0397334]
[1766257582993,0.02508022,88287.0,88274.0,0.0397334]
[1766257583193,0.22832012,88290.0,88274.0,0.0397334]
[1766257583395,0.02508015,88289.0,88274.0,0.0397334]
[1766257583696,0.02508015,88288.0,88274.0,0.0397334]
[1766257583895,0.02508015,88287.0,88274.0,0.0397334]
[1766257584195,0.22832012,88290.0,88274.0,0.0397334]
[1766257584398,0.02508059,88289.0,88274.0,0.0397334]
[1766257584595,0.02508059,88288.0,88274.0,0.0397334]
[1766257584896,0.02508059,88287.0,88274.0,0.0397334]
[1766257585095,0.22832012,88290.0,88274.0,0.0397334]
[1766257585296,0.02508077,88289.0,88274.0,0.0397334]
[1766257585595,0.02508077,88288.0,88274.0,0.0397334]
[1766257585790,0.02508077,88287.0,88274.0,0.0397334]
[1766257585995,0.22832012,88290.0,88274.0,0.0397334]
[1766257586196,0.02506023,88289.0,88274.0,0.0397334]
[1766257586395,0.02506023,88288.0,88274.0,0.0397334]
[1766257586593,0.02506023,88287.0,88274.0,0.0397334]
[1766257586794,0.22832012,88290.0,88274.0,0.0397334]
[1766257587094,0.02506048,88289.0,88274.0,0.0397334]
[1766257587295,0.02506048,88288.0,88274.0,0.0397334]
[1766257587496,0.02506048,88287.0,88274.0,0.0397334]
[1766257587697,0.22832012,88290.0,88274.0,0.0397334]
[1766257587998,0.02506079,88289.0,88274.0,0.0397334]
[1766257588297,0.02506079,88288.0,88274.0,0.0397334]
[1766257588498,0.22832012,88290.0,88274.0,0.0397334]
[1766257588697,0.02506109,88289.0,88274.0,0.0397334]
[1766257588886,0.02506109,88288.0,88274.0,0.0397334]
[1766257589083,0.22832012,88290.0,88274.0,0.0397334]
[1766257589300,0.02506109,88289.0,88274.0,0.0397334]
[1766257589598,0.02506109,88288.0,88274.0,0.0397334]
[1766257589799,0.22832012,88290.0,88274.0,0.0397334]
[1766257590000,0.02506148,88289.0,88274.0,0.0397334]
[1766257590194,0.02506148,88288.0,88274.0,0.0397334]
[1766257590395,0.22832012,88290.0,88274.0,0.0397334]
[1766257590594,0.02506151,88289.0,88274.0,0.0397334]
[1766257590896,0.22832012,88290.0,88274.0,0.0397334]
[1766257590897,0.02506151,88288.0,88274.0,0.0397334]
[1766257591099,0.22832012,88290.0,88274.0,0.0397334]
[1766257591294,0.02506169,88289.0,88274.0,0.0397334]
[1766257591492,0.02506169,88288.0,88274.0,0.0397334]
[1766257591693,0.22832012,88290.0,88274.0,0.0397334]
[1766257591997,0.02506169,88289.0,88274.0,0.0397334]
[1766257592197,0.02506169,88288.0,88274.0,0.0397334]
[1766257592498,0.22832012,88290.0,88274.0,0.0397334]
[1766257592699,0.0250615,88289.0,88274.0,0.0397334]
[1766257592900,0.0250615,88288.0,88274.0,0.0397334]
[1766257593096,0.22832012,88290.0,88274.0,0.0397334]
[1766257593397,0.0250615,88289.0,88274.0,0.0397334]
[1766257593596,0.0250615,88288.0,88274.0,0.0397334]
[1766257593795,0.22832012,88290.0,88274.0,0.0397334]
[1766257593996,0.02506158,88289.0,88274.0,0.0397334]
[1766257594198,0.02506158,88288.0,88274.0,0.0397334]
[1766257594395,0.22832012,88290.0,88274.0,0.0397334]
[1766257594596,0.02506166,88289.0,88274.0,0.0397334]
[1766257594797,0.22832012,88290.0,88274.0,0.0397334]
[1766257594798,0.02506166,88288.0,88274.0,0.0397334]
[1766257595000,0.22832012,88290.0,88274.0,0.0397334]
[1766257595201,0.02506167,88289.0,88274.0,0.0397334]
[1766257595502,0.02506167,88288.0,88274.0,0.0397334]
[1766257595702,0.22832012,88290.0,88274.0,0.0397334]
[1766257595904,0.02506176,88289.0,88274.0,0.0397334]
[1766257596103,0.02506176,88288.0,88274.0,0.0397334]
[1766257596306,0.22832012,88290.0,88274.0,0.0397334]
[1766257596506,0.02506179,88289.0,88274.0,0.0397334]
[1766257596706,0.02506179,88288.0,88274.0,0.0397334]
[1766257596906,0.22832012,88290.0,88274.0,0.0397334]
[1766257597105,0.02506178,88289.0,88274.0,0.0397334]
[1766257597409,0.02506178,88288.0,88274.0,0.0397334]
[1766257597600,0.0284,88292.0,88274.0,0.0397334]
[1766257597901,0.02506177,88291.0,88274.0,0.0397334]
[1766257598100,0.02506177,88290.0,88274.0,0.0397334]
[1766257598313,0.02506177,88289.0,88274.0,0.0397334]
[1766257598503,0.02506177,88288.0,88274.0,0.0397334]
[1766257598702,0.0284,88292.0,88274.0,0.0397334]
[1766257598904,0.02506184,88291.0,88274.0,0.0397334]
[1766257599104,0.02506184,88290.0,88274.0,0.0397334]
[1766257599304,0.02506184,88289.0,88274.0,0.0397334]
[1766257599505,0.02506184,88288.0,88274.0,0.0397334]
[1766257599810,0.0284,88292.0,88274.0,0.0397334]
[1766257600012,0.02506188,88291.0,88274.0,0.0397334]
[1766257600311,0.02506188,88290.0,88274.0,0.0397334]
[1766257600511,0.02506188,88289.0,88274.0,0.0397334]
[1766257600712,0.02506188,88288.0,88274.0,0.0397334]
[1766257600910,0.0284,88292.0,88274.0,0.0397334]
[1766257601110,0.02506208,88291.0,88274.0,0.0397334]
[1766257601310,0.02506208,88290.0,88274.0,0.0397334]
[1766257601511,0.02506208,88289.0,88274.0,0.0397334]
[1766257601712,0.02506208,88288.0,88274.0,0.0397334]
[1766257601912,0.0284,88292.0,88274.0,0.0397334]
[1766257602104,0.02506172,88291.0,88274.0,0.0397334]
[1766257602305,0.02506172,88290.0,88274.0,0.0397334]
[1766257602506,0.02506172,88289.0,88274.0,0.0397334]
[1766257602709,0.02506172,88288.0,88274.0,0.0397334]
[1766257602918,0.0284,88292.0,88274.0,0.0397334]
[1766257603106,0.02506183,88291.0,88274.0,0.0397334]
[1766257603404,0.02506183,88290.0,88274.0,0.0397334]
[1766257603606,0.02506183,88289.0,88274.0,0.0397334]
[1766257603902,0.02506183,88288.0,88274.0,0.0397334]
[1766257604105,0.0284,88292.0,88274.0,0.0397334]
[1766257604303,0.02506208,88291.0,88274.0,0.0397334]
[1766257604517,0.02506208,88290.0,88274.0,0.0397334]
[1766257604814,0.02506208,88289.0,88274.0,0.0397334]
[1766257605115,0.02506208,88288.0,88274.0,0.0397334]
[1766257605319,0.0284,88292.0,88274.0,0.0397334]
[1766257605616,0.02506207,88291.0,88274.0,0.0397334]
[1766257605821,0.02506207,88290.0,88274.0,0.0397334]
[1766257606020,0.02506207,88289.0,88274.0,0.0397334]
[1766257606216,0.02506207,88288.0,88274.0,0.0397334]
[1766257606416,0.0284,88292.0,88274.0,0.0397334]
[1766257606618,0.02506207,88291.0,88274.0,0.0397334]
[1766257606918,0.02506207,88290.0,88274.0,0.0397334]
[1766257607120,0.02506207,88289.0,88274.0,0.0397334]
[1766257607421,0.02506207,88288.0,88274.0,0.0397334]
[1766257607719,0.0284,88292.0,88274.0,0.0397334]
[1766257608014,0.02506206,88291.0,88274.0,0.0397334]
[1766257608221,0.02506206,88290.0,88274.0,0.0397334]
[1766257608518,0.02506206,88289.0,88274.0,0.0397334]
[1766257608720,0.02506206,88288.0,88274.0,0.0397334]
[1766257608921,0.0284,88292.0,88274.0,0.0397334]
[1766257609120,0.02506206,88291.0,88274.0,0.0397334]
[1766257609311,0.02506206,88290.0,88274.0,0.0397334]
[1766257609506,0.02506206,88289.0,88274.0,0.0397334]
[1766257609719,0.02506206,88288.0,88274.0,0.0397334]
[1766257609918,0.0284,88292.0,88274.0,0.0397334]
[1766257610114,0.02506204,88291.0,88274.0,0.0397334]
[1766257610418,0.02506204,88290.0,88274.0,0.0397334]
[1766257610620,0.02506204,88289.0,88274.0,0.0397334]
[1766257610821,0.02506204,88288.0,88274.0,0.0397334]
[1766257611118,0.00016986,88294.0,88274.0,0.0397334]
[1766257611321,0.02506205,88293.0,88274.0,0.0397334]
[1766257611508,0.02506205,88292.0,88274.0,0.0397334]
[1766257611707,0.02506205,88291.0,88274.0,0.0397334]
[1766257611912,0.02506205,88290.0,88274.0,0.0397334]
[1766257612121,0.02506205,88289.0,88274.0,0.0397334]
[1766257612323,0.02506205,88288.0,88274.0,0.0397334]
[1766257612523,0.00016986,88294.0,88274.0,0.0397334]
[1766257612724,0.02506199,88293.0,88274.0,0.0397334]
[1766257612925,0.02506199,88292.0,88274.0,0.0397334]
[1766257613124,0.02506199,88291.0,88274.0,0.0397334]
[1766257613312,0.02506199,88290.0,88274.0,0.0397334]
[1766257613516,0.02506199,88289.0,88274.0,0.0397334]
[1766257613718,0.02506199,88288.0,88274.0,0.0397334]
[1766257613919,0.00016986,88294.0,88274.0,0.0397334]
[1766257614118,0.025062,88293.0,88274.0,0.0397334]
[1766257614317,0.025062,88292.0,88274.0,0.0397334]
[1766257614517,0.025062,88291.0,88274.0,0.0397334]
[1766257614717,0.025062,88290.0,88274.0,0.0397334]
[1766257614919,0.025062,88289.0,88274.0,0.0397334]
[1766257615124,0.025062,88288.0,88274.0,0.0397334]
[1766257615424,0.00016986,88294.0,88274.0,0.0397334]
[1766257615624,0.025062,88293.0,88274.0,0.0397334]
[1766257615924,0.025062,88292.0,88274.0,0.0397334]
[1766257616222,0.025062,88291.0,88274.0,0.0397334]
[1766257616421,0.025062,88290.0,88274.0,0.0397334]
[1766257616618,0.025062,88289.0,88274.0,0.0397334]
[1766257616819,0.025062,88288.0,88274.0,0.0397334]
[1766257617020,0.025062,88287.0,88274.0,0.0397334]
[1766257617319,0.00016986,88294.0,88274.0,0.0397334]
[1766257617520,0.02534073,88293.0,88274.0,0.0397334]
[1766257617720,0.02534073,88292.0,88274.0,0.0397334]
[1766257617920,0.02534073,88291.0,88274.0,0.0397334]
[1766257618123,0.02534073,88290.0,88274.0,0.0397334]
[1766257618426,0.02534073,88289.0,88274.0,0.0397334]
[1766257618626,0.02534073,88288.0,88274.0,0.0397334]
[1766257618829,0.02534073,88287.0,88274.0,0.0397334]
[1766257619020,0.00016986,88294.0,88274.0,0.0397334]
[1766257619222,0.02534074,88293.0,88274.0,0.0397334]
[1766257619424,0.02534074,88292.0,88274.0,0.0397334]
[1766257619624,0.02534074,88291.0,88274.0,0.0397334]
[1766257619820,0.02534074,88290.0,88274.0,0.0397334]
[1766257620025,0.02534074,88289.0,88274.0,0.0397334]
[1766257620220,0.02534074,88288.0,88274.0,0.0397334]
[1766257620527,0.02534074,88287.0,88274.0,0.0397334]
[1766257620729,0.00016986,88294.0,88274.0,0.0397334]
[1766257620930,0.02534081,88293.0,88274.0,0.0397334]
[1766257621229,0.02534081,88292.0,88274.0,0.0397334]
[1766257621431,0.02534081,88291.0,88274.0,0.0397334]
[1766257621625,0.02534081,88290.0,88274.0,0.0397334]
[1766257621827,0.02534081,88289.0,88274.0,0.0397334]
[1766257622027,0.02534081,88288.0,88274.0,0.0397334]
[1766257622331,0.02534081,88287.0,88274.0,0.0397334]
[1766257622529,0.00016986,88294.0,88274.0,0.0397334]
[1766257622730,0.02534086,88293.0,88274.0,0.0397334]
[1766257623030,0.02534086,88292.0,88274.0,0.0397334]
[1766257623229,0.02534086,88291.0,88274.0,0.0397334]
[1766257623429,6e-08,88290.0,88274.0,0.0284]
[1766257623622,0.0113287,88311.0,88287.0,0.0113317]
[1766257623823,0.0113287,88311.0,88288.0,0.02836]
[1766257623824,0.22832508,88310.0,88288.0,0.02836]
[1766257624225,0.011329,88309.0,88288.0,0.02836]
[1766257624632,0.00016986,88307.0,88290.0,0.00016986]
[1766257634745,0.00016986,88307.0,88277.0,0.0802]
[1766257634746,0.45665016,88300.0,88277.0,0.0802]
[1766257634943,0.22832508,88293.0,88272.0,1.4452]
[1766257635150,0.22832508,88293.0,88278.0,0.02836]
[1766257642753,0.0113312,88292.0,88278.0,0.02836]
[1766257646362,0.0113315,88289.0,88278.0,0.02836]
[1766257647061,0.0113315,88289.0,88273.0,0.06109682]
[1766257647258,0.0113315,88289.0,88274.0,0.02836]
[1766257648363,0.23965618,88293.0,88274.0,0.02836]
[1766257648565,0.0113314,88290.0,88273.0,0.06109682]
[1766257649064,0.0113314,88290.0,88274.0,0.02836]
[1766257649364,0.0113314,88290.0,88274.0,0.08945682]
[1766257653067,0.23967944,88290.0,88274.0,0.08945682]
[1766257653267,0.0113318,88287.0,88275.0,0.06109682]
[1766257655671,0.0113318,88287.0,88274.0,0.08945682]
[1766257655861,0.00016986,88289.0,88274.0,0.02836]
[1766257656061,0.00016986,88289.0,88260.0,0.23968324]
[1766257656062,0.011333,88278.0,88261.0,0.16104687]
[1766257656267,0.02836,88288.0,88261.0,0.16104687]
[1766257656268,0.22834804,88271.0,88262.0,0.02836]
[1766257656463,0.0113332,88276.0,88262.0,0.02836]
[1766257657062,0.23968074,88280.0,88262.0,0.02836]
[1766257659573,0.23971892,88280.0,88262.0,0.02836]
[1766257661171,0.0113331,88277.0,88262.0,0.02836]
[1766257667478,0.22838622,88280.0,88262.0,0.02836]
[1766257669276,0.0113332,88276.0,88262.0,0.02836]
[1766257676888,0.0113327,88280.0,88266.0,0.22838622]
[1766257677096,0.0113322,88284.0,88270.0,0.22838622]
[1766257677287,0.0113322,88284.0,88271.0,0.02836]
[1766257681786,0.0113317,88288.0,88271.0,0.02836]
[1766257685397,0.00016986,88289.0,88271.0,0.02836]
[1766257685599,0.00016986,88289.0,88279.0,0.22838622]
[1766257685897,0.00016986,88289.0,88280.0,0.02836]
[1766257687090,0.0113305,88297.0,88280.0,0.02836]
[1766257688203,0.01150036,88297.0,88280.0,0.02836]
[1766257689800,0.01150036,88297.0,88280.0,0.25662885]
[1766257700308,0.0113309,88294.0,88280.0,0.25662885]
[1766257702510,0.00016986,88297.0,88280.0,0.25662885]
[1766257704605,0.0113306,88296.0,88280.0,0.25662885]
[1766257713507,0.00016986,88297.0,88280.0,0.25662885]
[1766257716007,0.00016986,88297.0,88280.0,0.02836]
[1766257716218,0.00016986,88297.0,88280.0,0.25662885]
[1766257718224,0.02508163,88296.0,88280.0,0.25662885]
[1766257718525,0.00016986,88297.0,88280.0,0.25662885]
[1766257718827,0.02508164,88296.0,88280.0,0.25662885]
[1766257719025,0.00016986,88297.0,88280.0,0.25662885]
[1766257719329,0.02508264,88296.0,88280.0,0.25662885]
[1766257719520,0.00016986,88297.0,88280.0,0.02836]
[1766257719720,0.02508266,88296.0,88280.0,0.02836]
[1766257719920,0.00016986,88297.0,88280.0,0.02836]
[1766257720122,0.02508267,88296.0,88280.0,0.02836]
[1766257720323,0.00016986,88297.0,88280.0,0.02836]
[1766257720627,0.0113302,88300.0,88280.0,0.2566432]
[1766257721138,0.0396897,88304.0,88280.0,0.2566432]
[1766257721630,0.01149986,88301.0,88280.0,0.2566432]
[1766257725935,0.0113304,88298.0,88280.0,0.2566432]
[1766257726132,0.0113304,88298.0,88280.0,0.02836]
[1766257727831,0.00016986,88301.0,88280.0,0.02836]
[1766257728231,0.0113302,88300.0,88280.0,0.25662993]
[1766257728431,0.0113302,88300.0,88280.0,0.02836]
[1766257732553,0.0249772,88299.0,88280.0,0.02836]
[1766257732750,0.0249772,88298.0,88280.0,0.02836]
[1766257732951,0.0249772,88297.0,88280.0,0.02836]
[1766257733152,0.0113302,88300.0,88280.0,0.02836]
[1766257733350,0.02497709,88299.0,88280.0,0.02836]
[1766257733551,0.02497709,88298.0,88280.0,0.02836]
[1766257733755,0.02497709,88297.0,88280.0,0.02836]
[1766257733954,0.0113302,88300.0,88280.0,0.02836]
[1766257734150,0.02497711,88299.0,88280.0,0.02836]
[1766257734344,0.02497711,88298.0,88278.0,0.0802]
[1766257734544,0.02497711,88297.0,88279.0,0.02836]
[1766257734851,0.0113302,88300.0,88279.0,0.02836]
[1766257735051,0.02497706,88299.0,88279.0,0.02836]
[1766257735352,0.02497706,88298.0,88279.0,0.02836]
[1766257735552,0.02497706,88297.0,88279.0,0.02836]
[1766257735852,0.0113302,88300.0,88279.0,0.02836]
[1766257736051,0.02497702,88299.0,88279.0,0.02836]
[1766257736253,0.02497702,88298.0,88279.0,0.02836]
[1766257736453,0.02497702,88297.0,88279.0,0.02836]
[1766257736755,0.0113302,88300.0,88279.0,0.02836]
[1766257736954,0.02486939,88299.0,88279.0,0.02836]
[1766257737157,0.02486939,88298.0,88279.0,0.02836]
[1766257737457,0.0113302,88300.0,88279.0,0.02836]
[1766257737458,0.02486939,88297.0,88279.0,0.02836]
[1766257737656,0.0113302,88300.0,88279.0,0.02836]
[1766257737853,0.02486943,88299.0,88279.0,0.02836]
[1766257738052,0.02486943,88298.0,88279.0,0.02836]
[1766257738253,0.02486943,88297.0,88279.0,0.02836]
[1766257738457,0.0113302,88300.0,88279.0,0.02836]
[1766257738648,0.02486945,88299.0,88279.0,0.02836]
[1766257738853,0.02486945,88298.0,88279.0,0.02836]
[1766257739053,0.02486945,88297.0,88279.0,0.02836]
[1766257739255,0.0113302,88300.0,88279.0,0.02836]
[1766257739564,0.02486954,88299.0,88279.0,0.02836]
[1766257739857,0.02486954,88298.0,88279.0,0.02836]
[1766257740059,0.02486954,88297.0,88279.0,0.02836]
[1766257740250,0.0113302,88300.0,88279.0,0.02836]
[1766257740451,0.02486964,88299.0,88279.0,0.02836]
[1766257740652,0.02486964,88298.0,88279.0,0.02836]
[1766257740852,0.02486964,88297.0,88279.0,0.02836]
[1766257741052,0.0113302,88300.0,88279.0,0.02836]
[1766257741254,0.02486979,88299.0,88280.0,0.0113326]
[1766257741454,0.02486979,88298.0,88280.0,0.0113326]
[1766257741654,0.02486979,88297.0,88280.0,0.0113326]
[1766257741857,0.00016986,88301.0,88280.0,0.0113326]
[1766257742055,0.02486979,88300.0,88280.0,0.0113326]
[1766257742249,0.02486979,88299.0,88280.0,0.0113326]
[1766257742454,0.02486979,88298.0,88280.0,0.0113326]
[1766257742766,0.02486979,88297.0,88280.0,0.0113326]
[1766257743062,0.00016986,88301.0,88280.0,0.0113326]
[1766257743358,0.02487004,88300.0,88280.0,0.0113326]
[1766257743562,0.02487004,88299.0,88280.0,0.0113326]
[1766257743763,0.0113284,88313.0,88292.0,0.011331]
[1766257744065,0.02485051,88329.0,88300.0,0.22826993]
[1766257744262,0.011328,88317.0,88301.0,0.02836]
[1766257744654,0.0113287,88311.0,88301.0,0.02836]
[1766257744852,0.0113287,88311.0,88301.0,0.02832]
[1766257779487,0.2395493,88311.0,88301.0,0.02832]
[1766257782890,0.0113287,88311.0,88301.0,0.02832]
[1766257783486,0.01149806,88315.0,88301.0,0.02832]
[1766257801709,0.0113277,88319.0,88301.0,0.02832]
[1766257801910,0.00229051,88329.0,88301.0,0.06903251]
[1766257802115,0.00229051,88329.0,88309.0,0.22818841]
[1766257802310,0.00229051,88329.0,88310.0,0.02836]
[1766257802506,0.00229051,88329.0,88310.0,0.25654841]
[1766257803015,0.00016986,88328.0,88310.0,0.25654841]
[1766257805921,0.00016986,88328.0,88310.0,0.02836]